bitfinex/quotes_ETHUSD_20240824
["timestamp","ask_amount","ask_price","bid_price","bid_amount"]
[1724519273948,3.6171484,2811.5,2810.9,2.6048]
[1724519275119,3.55694,2811.4,2810.9,2.6048]
[1724519275325,0.06032391,2811.4,2811.0,2.6048]
[1724519275617,3.55653,2811.8,2811.1,3.55721]
[1724519276116,0.06033801,2811.7,2811.1,3.55721]
[1724519276723,3.61694801,2811.7,2811.0,2.6048]
[1724519277249,0.06033801,2811.7,2811.0,2.6048]
[1724519277451,0.06033801,2811.7,2811.1,0.616229]
[1724519278505,0.06033801,2811.7,2811.1,4.173549]
[1724519280443,3.61690801,2811.7,2811.1,4.173549]
[1724519281503,0.06033801,2811.7,2811.3,3.55706]
[1724519281713,0.06033801,2811.7,2811.4,2.6048]
[1724519281958,3.55622,2812.0,2811.5,0.616186]
[1724519282121,0.06057324,2811.6,2811.5,0.616186]
[1724519282323,3.55622,2812.0,2811.5,0.616186]
[1724519282536,0.06058027,2811.6,2811.5,0.616186]
[1724519282724,3.55622,2812.0,2811.5,0.616186]
[1724519283031,3.55622,2812.0,2811.4,2.6048]
[1724519283208,0.06058195,2811.9,2811.4,2.6048]
[1724519288056,0.06058195,2811.9,2811.1,6.28553]
[1724519288263,0.06058195,2811.9,2811.2,6.55717]
[1724519288457,0.06058195,2811.9,2811.3,3.55706]
[1724519288630,0.06058195,2811.9,2811.4,0.655706]
[1724519288963,0.06058195,2811.9,2811.4,4.212596]
[1724519289129,0.06058195,2811.9,2811.4,0.655706]
[1724519289459,0.06057943,2811.8,2811.5,2.7283]
[1724519289817,3.55599,2812.2,2811.5,6.28506]
[1724519290018,0.06057494,2811.7,2811.5,6.28506]
[1724519290232,3.55599,2812.2,2811.6,0.6940766]
[1724519290522,0.06059289,2812.1,2811.5,6.28506]
[1724519290748,0.06059289,2812.1,2811.5,2.7283]
[1724519293325,0.06059289,2812.1,2812.0,6.29998]
[1724519293517,3.55525,2812.8,2812.1,3.55602]
[1724519293754,9.6862,2813.0,2812.2,3.55592]
[1724519293950,9.6862,2813.0,2812.2,3.55584]
[1724519293951,2.5762,2813.0,2812.2,3.55584]
[1724519294150,4.168158,2812.9,2812.2,3.55584]
[1724519295322,7.723318,2812.9,2812.0,10.841783]
[1724519295527,4.168158,2812.9,2812.1,3.55604]
[1724519295727,7.723308,2812.9,2812.1,3.55604]
[1724519295972,4.168158,2812.9,2812.2,3.55591]
[1724519296175,3.55505,2812.9,2812.2,4.60678679]
[1724519296521,3.55435,2813.5,2812.5,3.55554]
[1724519296522,2.5762,2813.5,2812.5,3.55554]
[1724519297735,3.55467,2813.2,2812.5,3.55554]
[1724519297925,3.55461,2813.3,2812.5,3.55547]
[1724519298254,3.55483,2813.1,2812.3,6.29952]
[1724519298470,3.55483,2813.1,2812.3,7.39016168]
[1724519298835,3.55483,2813.1,2812.3,10.94588168]
[1724519299034,3.55483,2813.1,2812.3,7.39016168]
[1724519299636,3.55475,2813.2,2812.3,7.39016168]
[1724519299840,3.55475,2813.2,2812.4,3.55566]
[1724519300153,3.5548,2813.1,2812.5,1.09458217]
[1724519300554,3.55493,2813.0,2812.5,1.09458217]
[1724519300752,3.55493,2813.0,2812.3,2.7438]
[1724519300753,3.55517,2812.9,2812.3,2.7438]
[1724519301563,3.5551,2812.9,2812.3,2.7438]
[1724519301779,3.55483,2813.1,2812.3,6.29959]
[1724519302453,3.555,2813.0,2812.3,6.29959]
[1724519304174,3.5548,2813.1,2812.3,9.85529]
[1724519304358,3.5548,2813.1,2812.4,0.985529]
[1724519305087,3.5548,2813.1,2812.4,4.541189]
[1724519305537,3.55454,2813.3,2812.5,6.29925]
[1724519305743,7.1092,2813.3,2812.5,6.29925]
[1724519306093,3.55483,2813.1,2812.5,2.7437]
[1724519306571,3.55483,2813.1,2812.3,3.55572]
[1724519306738,3.55483,2813.1,2812.4,3.0]
[1724519307154,3.55483,2813.1,2812.5,2.7437]
[1724519308606,0.06172072,2813.0,2812.5,2.7437]
[1724519310701,3.5547,2813.2,2812.5,2.7437]
[1724519310873,0.06171624,2812.9,2812.5,2.7437]
[1724519311229,4.265628,2813.2,2812.5,2.7437]
[1724519311925,0.0617252,2813.1,2812.5,2.7437]
[1724519313110,3.61672579,2813.0,2812.5,2.7437]
[1724519313944,0.06172579,2813.0,2812.5,2.7437]
[1724519314125,0.42338937,2813.0,2812.5,2.7437]
[1724519314476,3.97839937,2813.0,2812.5,2.7437]
[1724519315607,0.42338937,2813.0,2812.5,2.7437]
[1724519316091,3.55505,2812.9,2812.2,2.3448]
[1724519316421,3.61677523,2812.9,2812.2,2.3448]
[1724519316621,4.37010911,2812.9,2812.2,3.56949789]
[1724519317445,4.37010911,2812.9,2812.4,1.22469789]
[1724519317607,4.37010911,2812.9,2812.6,1.22469789]
[1724519317608,0.06172523,2812.9,2812.6,1.22469789]
[1724519318318,7.10923,2813.3,2812.6,1.22469789]
[1724519318522,2.5762,2813.5,2812.7,2.3448]
[1724519318523,0.06165993,2812.8,2812.7,2.3448]
[1724519318685,0.06165993,2812.8,2812.7,7.12479789]
[1724519318889,3.55435,2813.5,2812.7,7.12479789]
[1724519318890,3.55435,2813.5,2812.7,4.63751968]
[1724519319110,0.06165993,2812.8,2812.7,2.3448]
[1724519319496,3.55467,2813.2,2812.7,2.3448]
[1724519319928,0.06165818,2813.1,2812.7,2.3448]
[1724519320421,3.61644818,2813.1,2812.7,2.3448]
[1724519320632,3.61644818,2813.1,2812.3,2.3448]
[1724519320925,0.06165818,2813.1,2812.5,2.3448]
[1724519321093,0.06165818,2813.1,2812.5,5.90032]
[1724519321273,3.55459,2813.3,2812.5,5.90032]
[1724519321274,0.06174247,2813.0,2812.5,5.90032]
[1724519321682,3.55435,2813.5,2812.6,2.3448]
[1724519321935,0.06173798,2812.9,2812.8,3.55514]
[1724519322230,2.402,2814.1,2813.0,2.3448]
[1724519322231,3.55411,2813.7,2813.0,2.3448]
[1724519322602,0.06178059,2813.6,2813.0,2.3448]
[1724519322781,2.402,2813.5,2812.2,5.3448]
[1724519323040,3.55519,2812.8,2812.2,2.3448]
[1724519323533,3.61717464,2812.7,2812.2,2.3448]
[1724519325040,0.7791011,2812.7,2811.6,2.3448]
[1724519325186,3.55607,2812.1,2811.6,2.3448]
[1724519325417,2.402,2812.6,2811.6,2.3448]
[1724519325418,3.55589,2812.3,2811.6,2.3448]
[1724519325609,0.06183324,2812.0,2811.6,2.3448]
[1724519325810,3.55594,2812.2,2811.6,2.3448]
[1724519326112,3.55589,2812.3,2811.6,2.3448]
[1724519326113,0.06170598,2811.9,2811.6,2.3448]
[1724519326343,3.55557,2812.5,2811.8,2.2876]
[1724519326874,0.06171761,2812.4,2812.1,2.2876]
[1724519327212,3.55488,2813.1,2812.4,2.2876]
[1724519327642,0.05899276,2813.0,2812.4,2.2876]
[1724519327819,3.61391276,2813.0,2812.4,2.2876]
[1724519328860,0.05899276,2813.0,2812.4,2.2876]
[1724519330670,0.05899276,2813.0,2812.4,3.55558]
[1724519330874,0.05899276,2813.0,2812.5,2.2965]
[1724519331056,0.05899276,2813.0,2812.5,5.92315371]
[1724519331385,3.55476,2813.2,2812.5,5.92315371]
[1724519331882,0.05927199,2813.1,2812.5,5.92315371]
[1724519332058,0.05927199,2813.1,2812.4,0.711128]
[1724519332059,0.05927199,2813.1,2812.7,2.2965]
[1724519332231,0.05927199,2813.1,2812.9,5.85154]
[1724519332433,3.55401,2813.8,2812.9,5.85154]
[1724519332626,0.05967623,2813.0,2812.9,5.85154]
[1724519332834,3.55405,2813.7,2813.0,3.55489]
[1724519333246,3.55394,2813.8,2813.1,2.36758851]
[1724519333485,3.55385,2813.9,2813.2,2.2965]
[1724519334177,3.55385,2813.9,2813.3,2.2965]
[1724519334338,3.55413,2813.7,2813.3,2.2965]
[1724519334538,3.55385,2813.9,2813.3,2.2965]
[1724519335068,3.55412,2813.7,2813.3,2.2965]
[1724519335287,3.909582,2813.6,2813.3,2.2965]
[1724519335442,0.355412,2813.6,2813.3,2.2965]
[1724519335865,3.55412,2813.7,2813.3,2.2965]
[1724519337768,3.55382,2813.9,2813.3,2.2965]
[1724519337994,3.55382,2813.9,2812.9,2.2965]
[1724519337995,2.93867218,2813.9,2812.9,2.2965]
[1724519338199,3.55492,2813.0,2812.2,2.2965]
[1724519338364,0.05993039,2812.9,2812.4,2.2965]
[1724519338570,3.55476,2813.2,2812.4,2.2965]
[1724519339112,3.55513,2812.9,2812.4,2.2965]
[1724519339412,0.05992787,2812.8,2812.4,2.2965]
[1724519340990,0.05992787,2812.8,2812.4,6.73732]
[1724519341335,3.55435,2813.5,2812.6,2.2965]
[1724519341634,3.55447,2813.4,2812.6,5.85192]
[1724519341842,3.61412065,2813.4,2812.6,5.85192]
[1724519342127,3.55455,2813.3,2812.6,2.2965]
[1724519342336,4.27140507,2813.3,2812.6,2.2965]
[1724519342539,0.05967722,2813.2,2812.6,2.2965]
[1724519342736,0.05967722,2813.2,2812.4,0.88523]
[1724519342737,0.05967722,2813.2,2812.7,3.55518]
[1724519342887,0.05967722,2813.2,2812.9,3.55493]
[1724519343091,0.05967722,2813.2,2813.0,2.2965]
[1724519343321,3.55417,2813.6,2813.0,2.2965]
[1724519343498,0.05972854,2813.1,2813.0,2.2965]
[1724519343707,3.55417,2813.6,2813.0,2.2965]
[1724519344347,0.05984289,2813.5,2813.0,2.2965]
[1724519344516,0.05984289,2813.5,2813.2,2.2965]
[1724519344721,3.55385,2813.9,2813.2,2.2965]
[1724519344722,3.55407,2813.7,2813.2,2.2965]
[1724519345032,3.55385,2813.9,2813.2,2.2965]
[1724519345033,3.55391,2813.8,2813.2,2.2965]
[1724519345236,0.05995003,2813.6,2813.2,2.2965]
[1724519345415,0.05995255,2813.7,2813.2,3.537122]
[1724519346400,0.05995255,2813.7,2813.2,2.2965]
[1724519346801,3.61400255,2813.7,2813.2,2.2965]
[1724519347217,0.05995255,2813.7,2813.2,2.2965]
[1724519347416,3.55385,2813.9,2813.2,2.2965]
[1724519347634,0.05994919,2813.8,2813.2,5.85116]
[1724519347809,0.05994919,2813.8,2813.2,2.2965]
[1724519349682,0.05994919,2813.8,2813.2,7.091701]
[1724519349826,0.05994919,2813.8,2813.3,6.01183]
[1724519350026,0.05994919,2813.8,2813.3,2.4573]
[1724519351672,3.61385919,2813.8,2813.3,2.4573]
[1724519353937,3.55405,2813.7,2813.3,2.4573]
[1724519354461,0.05994807,2813.6,2813.3,2.4573]
[1724519354769,3.55391,2813.8,2813.3,2.4573]
[1724519355159,0.06022145,2813.7,2813.3,2.4573]
[1724519355668,0.06021697,2813.6,2813.3,2.4573]
[1724519356043,3.55391,2813.8,2813.3,2.4573]
[1724519356568,0.06048527,2813.7,2813.3,2.4573]
[1724519356866,3.55392,2813.8,2813.3,3.413977]
[1724519357071,0.06047883,2813.6,2813.3,2.4573]
[1724519357382,0.06048331,2813.7,2813.3,2.4573]
[1724519357669,3.55392,2813.8,2813.3,2.4573]
[1724519357871,0.06048897,2813.6,2813.3,2.4573]
[1724519358032,0.06049346,2813.7,2813.3,2.4573]
[1724519358376,0.06048449,2813.5,2813.3,2.4573]
[1724519358582,3.55392,2813.8,2813.3,2.4573]
[1724519359073,0.06049346,2813.7,2813.5,3.5542]
[1724519359374,0.06049346,2813.7,2813.6,2.4937]
[1724519359572,0.06053827,2813.7,2813.6,2.4937]
[1724519359777,3.55356,2814.1,2813.6,2.4937]
[1724519360133,0.06055171,2814.0,2813.6,2.4937]
[1724519363416,0.06055171,2814.0,2813.6,3.098509]
[1724519368869,0.06055171,2814.0,2813.9,7.18714562]
[1724519369329,3.55284,2814.7,2814.0,3.55361]
[1724519369615,0.05921993,2814.6,2814.1,2.4097]
[1724519369973,0.05921993,2814.6,2814.2,3.55333]
[1724519370177,4.77612562,2815.0,2814.3,2.4097]
[1724519370404,3.61177337,2814.9,2814.3,2.4097]
[1724519371120,3.61176337,2814.9,2814.3,2.4097]
[1724519371339,3.50268,2814.8,2814.3,2.4097]
[1724519371492,0.05923337,2814.9,2813.7,2.3375]
[1724519371694,3.55308,2814.5,2813.8,2.3375]
[1724519371893,3.55317,2814.4,2813.8,2.3375]
[1724519372091,3.61305644,2814.4,2813.8,2.3375]
[1724519372424,3.61305644,2814.4,2813.9,0.53375]
[1724519373680,3.61305644,2814.4,2814.0,2.3375]
[1724519374452,0.05988644,2814.4,2814.0,2.3375]
[1724519374779,7.10598,2814.6,2814.0,2.3375]
[1724519375084,0.05989092,2814.5,2814.0,2.3375]
[1724519375296,0.05989092,2814.5,2814.0,2.980014]
[1724519375601,3.61297092,2814.5,2814.0,2.980014]
[1724519375799,0.05989092,2814.5,2814.0,2.980014]
[1724519375983,3.61294092,2814.5,2814.0,2.980014]
[1724519377938,7.16606092,2814.5,2814.0,2.980014]
[1724519378238,7.16606092,2814.5,2814.0,2.3375]
[1724519378887,7.16606092,2814.5,2813.9,0.53375]
[1724519378888,3.55394,2813.8,2813.3,2.3375]
[1724519379090,3.55418,2813.6,2813.3,2.3375]
[1724519379319,3.55418,2813.6,2812.7,10.86527]
[1724519379523,0.05983883,2813.5,2812.8,3.779565]
[1724519379722,3.55441,2813.4,2812.8,3.779565]
[1724519379904,3.61422407,2813.4,2812.8,2.3375]
[1724519381344,0.05981407,2813.4,2812.8,2.3375]
[1724519381505,0.05981407,2813.4,2812.8,3.55509]
[1724519381703,3.55438,2813.5,2812.9,5.3375]
[1724519381914,0.05937318,2813.3,2812.9,2.3375]
[1724519382241,0.05936085,2813.2,2812.9,2.3375]
[1724519382554,3.55441,2813.4,2812.9,2.3375]
[1724519382701,0.0593513,2813.1,2812.9,2.3375]
[1724519382896,7.10851,2813.6,2812.9,2.3375]
[1724519383144,0.05934681,2813.0,2812.9,2.3375]
[1724519383348,0.710851,2813.5,2812.9,2.3375]
[1724519383499,0.05934681,2813.0,2812.9,2.3375]
[1724519384036,3.0,2814.4,2813.4,2.3375]
[1724519384201,3.55346,2814.2,2813.5,2.3375]
[1724519384538,0.0569001,2814.1,2813.5,5.89178]
[1724519385348,0.0569001,2814.1,2813.5,6.836317]
[1724519385540,0.0569001,2814.1,2813.6,5.99675]
[1724519385702,3.55321,2814.4,2813.7,2.4426]
[1724519386207,3.60846327,2814.3,2813.7,2.4426]
[1724519387201,3.55341,2814.2,2813.7,2.4426]
[1724519387397,0.05514236,2814.1,2813.7,0.6941417]
[1724519387647,3.55321,2814.4,2813.8,2.4426]
[1724519387853,0.05515327,2814.3,2813.8,2.4426]
[1724519389016,0.05515327,2814.3,2813.8,5.99646]
[1724519389220,3.55296,2814.6,2813.9,2.4426]
[1724519389418,0.05536775,2814.5,2813.9,2.4426]
[1724519389742,0.05536775,2814.5,2813.9,3.11166017]
[1724519389743,3.60847775,2814.5,2813.9,3.11166017]
[1724519390713,3.60847775,2814.5,2814.0,2.3865]
[1724519391320,3.55353,2814.1,2814.0,2.3865]
[1724519391605,3.60899053,2814.1,2814.0,2.3865]
[1724519392546,3.55366,2814.0,2813.5,2.3865]
[1724519392750,3.55366,2814.0,2813.5,3.280602]
[1724519392751,3.55379,2813.9,2813.5,3.280602]
[1724519392931,3.60924157,2813.9,2813.5,3.280602]
[1724519393113,0.05545157,2813.9,2813.5,3.280602]
[1724519393637,0.05544709,2813.8,2813.5,3.280602]
[1724519393818,3.55367,2814.0,2813.5,3.280602]
[1724519394020,0.05535497,2813.9,2813.5,3.280602]
[1724519394357,3.55355,2814.1,2813.6,0.9834992]
[1724519394706,0.05535945,2814.0,2813.6,0.9834992]
[1724519395306,3.55357,2814.1,2813.6,0.9834992]
[1724519395502,0.05535497,2813.9,2813.6,0.9834992]
[1724519395807,3.55357,2814.1,2813.6,0.9834992]
[1724519395808,0.05535637,2813.8,2813.6,0.9834992]
[1724519396032,3.55357,2814.1,2813.6,0.9834992]
[1724519396207,0.05536533,2814.0,2813.6,0.9834992]
[1724519397936,0.05536533,2814.0,2813.8,2.4715]
[1724519398335,3.55329,2814.3,2813.8,2.4715]
[1724519398818,0.05537429,2814.2,2813.8,2.4715]
[1724519399023,3.55308,2814.5,2813.8,2.4715]
[1724519399243,0.05535193,2814.4,2813.8,2.4715]
[1724519399450,0.05535193,2814.4,2814.0,2.4715]
[1724519400854,3.60851193,2814.4,2814.0,2.4715]
[1724519401411,0.05535193,2814.4,2814.0,2.4715]
[1724519401606,3.55307,2814.5,2814.0,2.4715]
[1724519401922,0.0537934,2814.4,2814.0,2.4715]
[1724519402143,3.6070334,2814.4,2814.0,2.4715]
[1724519402514,3.55391,2813.8,2813.7,2.4715]
[1724519402862,3.55391,2813.8,2812.8,0.49535982]
[1724519402863,3.55454,2813.3,2813.2,2.4715]
[1724519403163,3.60831666,2813.3,2813.2,2.4715]
[1724519404024,0.05377666,2813.3,2813.2,2.4715]
[1724519404432,0.05377666,2813.3,2813.2,2.71865]
[1724519404666,3.5541,2813.7,2813.2,2.71865]
[1724519404911,0.05336976,2813.3,2813.2,2.4715]
[1724519405188,2.4606,2814.4,2813.2,2.4715]
[1724519405189,3.55384,2813.9,2813.2,2.4715]
[1724519405327,3.55384,2813.9,2813.3,2.4715]
[1724519405532,0.0533902,2813.8,2813.3,2.4715]
[1724519405730,0.0533902,2813.8,2813.5,2.4522]
[1724519406532,3.55356,2814.1,2813.5,2.4522]
[1724519406733,0.05319222,2813.7,2813.5,2.4522]
[1724519407035,3.55307,2814.5,2813.5,2.4522]
[1724519407036,3.55316,2814.4,2813.7,2.4522]
[1724519407270,0.0532191,2814.3,2813.8,2.4522]
[1724519407580,3.55307,2814.5,2813.6,2.4522]
[1724519407581,3.55376,2814.0,2813.6,2.4522]
[1724519407877,3.55245,2815.0,2813.6,2.4522]
[1724519407878,0.0534199,2813.9,2813.6,2.4522]
[1724519408283,3.55366,2814.0,2813.6,2.4522]
[1724519408486,0.05341668,2813.8,2813.6,2.4522]
[1724519408689,3.55399,2813.8,2813.2,3.0]
[1724519408860,0.05350441,2813.7,2813.2,2.4522]
[1724519409056,3.60754441,2813.7,2813.2,2.4522]
[1724519409272,0.05350441,2813.7,2813.2,2.4522]
[1724519410185,0.05350441,2813.7,2813.2,6.00681]
[1724519410339,0.05350441,2813.7,2813.5,2.3097]
[1724519410639,3.55353,2814.1,2813.5,2.89611]
[1724519410841,0.05337335,2814.0,2813.5,2.3097]
[1724519411387,3.60703335,2814.0,2813.5,2.3097]
[1724519411682,7.16081335,2814.0,2813.5,2.3097]
[1724519411906,3.60703335,2814.0,2813.5,2.3097]
[1724519412306,4.32308069,2814.0,2813.5,2.2597]
[1724519413187,0.76942069,2814.0,2813.5,2.2597]
[1724519414003,0.05337335,2814.0,2813.5,2.2597]
[1724519414377,3.55344,2814.2,2813.5,2.2597]
[1724519414590,0.05345229,2813.9,2813.5,2.2597]
[1724519414773,3.55344,2814.2,2813.5,2.2597]
[1724519415007,0.05346738,2813.8,2813.5,2.2597]
[1724519415309,3.55344,2814.2,2813.5,2.2597]
[1724519415310,0.0534629,2813.7,2813.5,2.2597]
[1724519415680,3.55355,2814.1,2813.5,2.2597]
[1724519415875,0.05350689,2814.0,2813.5,2.2597]
[1724519416303,3.96787258,2814.0,2813.5,2.2597]
[1724519416611,3.96790258,2814.0,2813.5,2.2597]
[1724519417162,0.41421258,2814.0,2813.5,2.2597]
[1724519418168,0.05350689,2814.0,2813.5,2.2597]
[1724519421481,3.60716689,2814.0,2813.5,2.2597]
[1724519421929,3.55378,2813.9,2813.5,2.2597]
[1724519422338,0.0535079,2813.8,2813.5,2.2597]
[1724519422641,3.6074879,2813.8,2813.5,2.2597]
[1724519425293,0.0535079,2813.8,2813.5,2.2597]
[1724519425811,0.05172426,2813.7,2813.5,2.2597]
[1724519426000,3.55377,2814.0,2813.5,2.2597]
[1724519426205,0.05173322,2813.9,2813.5,2.2597]
[1724519426995,0.05173322,2813.9,2813.5,5.81399]
[1724519427191,0.05173322,2813.9,2813.6,2.2512]
[1724519427390,3.55347,2814.2,2813.6,2.2512]
[1724519427990,0.05166806,2814.1,2813.6,2.2512]
[1724519428220,3.60519806,2814.1,2813.6,2.2512]
[1724519429237,3.91418981,2814.0,2813.6,2.2512]
[1724519429600,3.55402,2813.8,2813.6,2.2512]
[1724519429891,0.05165799,2813.7,2813.3,2.2512]
[1724519430096,3.55402,2813.8,2813.3,2.2512]
[1724519430344,0.0516678,2813.7,2813.3,2.2512]
[1724519430685,3.55402,2813.8,2813.3,2.2512]
[1724519430842,0.0516678,2813.7,2813.3,2.2512]
[1724519431045,4.30085498,2813.8,2813.3,2.2512]
[1724519431344,0.0516678,2813.7,2813.3,2.2512]
[1724519431642,0.03620612,2813.7,2813.3,2.2512]
[1724519431797,3.55381,2813.9,2813.3,2.2512]
[1724519431996,4.30060098,2813.9,2813.3,2.2512]
[1724519432236,0.08784379,2813.8,2813.3,2.2512]
[1724519432437,0.08784379,2813.8,2813.3,2.80722843]
[1724519432594,0.08784379,2813.8,2813.3,2.80722845]
[1724519432816,0.08784379,2813.8,2813.3,2.2512]
[1724519434468,0.08784379,2813.8,2813.4,0.55602036]
[1724519434752,0.08784379,2813.8,2813.3,2.2512]
[1724519434910,0.08784379,2813.8,2813.4,0.55601924]
[1724519435101,0.08784379,2813.8,2813.3,2.2512]
[1724519436757,0.08784379,2813.8,2813.6,3.55416]
[1724519436955,0.08784379,2813.8,2813.7,2.4592]
[1724519437159,3.55334,2814.3,2813.7,2.4592]
[1724519437328,0.08777749,2813.8,2813.7,2.4592]
[1724519437854,7.10672,2814.3,2813.7,2.4592]
[1724519438037,7.817392,2814.3,2813.7,2.4592]
[1724519438268,3.64120026,2814.2,2813.7,2.4592]
[1724519438416,0.08779026,2814.2,2813.7,2.4592]
[1724519438844,3.64120026,2814.2,2813.7,2.4592]
[1724519439253,0.08779026,2814.2,2813.7,2.4592]
[1724519439863,3.64120026,2814.2,2813.7,2.4592]
[1724519441361,4.43170749,2814.2,2813.7,2.4592]
[1724519442367,3.64120026,2814.2,2813.7,2.4592]
[1724519443067,0.08779026,2814.2,2813.8,3.55381]
[1724519443367,3.55297,2814.6,2813.9,2.4592]
[1724519443728,3.64098747,2814.5,2813.9,2.4592]
[1724519444056,3.55318,2814.4,2813.9,2.4592]
[1724519444266,0.08803304,2814.3,2813.9,2.4592]
[1724519448835,3.55298,2814.6,2813.9,3.55374]
[1724519449036,3.55284,2814.7,2814.0,2.3141]
[1724519449237,0.08822612,2814.6,2814.0,2.3141]
[1724519450384,0.08822612,2814.6,2814.0,4.495735]
[1724519450678,0.08822612,2814.6,2814.1,2.4298]
[1724519451652,3.64114612,2814.6,2814.1,2.4298]
[1724519453366,3.55324,2814.4,2814.1,2.4298]
[1724519453813,0.08834905,2814.3,2814.1,2.4298]
[1724519458030,3.5533,2814.3,2813.7,5.98382]
[1724519458218,3.55329,2814.3,2813.7,2.4298]
[1724519458410,0.0884274,2814.2,2813.7,5.98381]
[1724519458626,3.55324,2814.4,2813.7,5.98381]
[1724519458830,0.08843059,2814.3,2813.7,5.98381]
[1724519461830,0.08843059,2814.3,2813.8,2.4298]
[1724519463214,0.08843059,2814.3,2813.9,3.55375]
[1724519463414,3.55309,2814.5,2814.0,2.4298]
[1724519463868,0.08828598,2814.4,2814.0,2.4298]
[1724519464020,0.08828598,2814.4,2814.0,4.151965]
[1724519464371,3.55283,2814.7,2814.1,2.4298]
[1724519464583,0.08829759,2814.3,2814.1,2.4298]
[1724519464878,0.08829439,2814.2,2814.1,2.4298]
[1724519465233,3.55283,2814.7,2814.1,2.4298]
[1724519465436,0.08829439,2814.2,2814.1,2.4298]
[1724519465672,3.55277,2814.7,2814.1,2.4298]
[1724519465873,0.08829439,2814.2,2814.1,2.4298]
[1724519466362,3.5529,2814.6,2814.1,2.4298]
[1724519466542,0.08834026,2814.2,2814.1,2.4298]
[1724519466742,3.5529,2814.6,2814.1,3.028151]
[1724519466936,0.08834026,2814.2,2814.1,2.4298]
[1724519467152,3.5529,2814.6,2814.1,2.4298]
[1724519467348,0.08834026,2814.2,2814.1,2.4298]
[1724519467563,3.55277,2814.7,2814.1,2.4298]
[1724519467894,0.0884148,2814.2,2814.1,2.4298]
[1724519468068,3.55277,2814.7,2814.2,2.3897]
[1724519469544,3.55258,2814.9,2814.2,2.3897]
[1724519469545,3.55274,2814.8,2814.2,2.3897]
[1724519470973,7.10549,2814.8,2814.2,2.3897]
[1724519471141,3.55279,2814.7,2814.2,2.3897]
[1724519471343,3.55274,2814.8,2814.2,2.3897]
[1724519471582,3.55274,2814.8,2814.3,2.4706]
[1724519473381,0.08856835,2814.7,2814.3,2.4706]
[1724519473890,3.55274,2814.8,2814.3,2.4706]
[1724519474091,0.08856516,2814.6,2814.3,2.4706]
[1724519474257,0.08856835,2814.7,2814.3,2.4706]
[1724519474587,3.55274,2814.8,2814.3,2.4706]
[1724519474741,0.08856516,2814.6,2814.3,2.4706]
[1724519474946,3.55274,2814.8,2814.3,2.4706]
[1724519475163,0.44384235,2814.7,2814.3,2.4706]
[1724519475487,0.08856835,2814.7,2814.3,2.4706]
[1724519475658,3.55274,2814.8,2814.3,2.4706]
[1724519476080,0.08856835,2814.7,2814.3,2.4706]
[1724519476448,3.55274,2814.8,2814.3,2.4706]
[1724519476642,0.08856516,2814.6,2814.3,2.4706]
[1724519476875,0.08856835,2814.7,2814.3,2.4706]
[1724519477100,0.08856197,2814.5,2814.3,2.4706]
[1724519477276,3.55274,2814.8,2814.3,2.4706]
[1724519477594,4.263259,2814.8,2814.3,2.4706]
[1724519477791,0.08856835,2814.7,2814.3,2.4706]
[1724519478146,4.263259,2814.8,2814.3,2.4706]
[1724519478353,0.08856835,2814.7,2814.3,2.4706]
[1724519478688,4.263259,2814.8,2814.3,2.4706]
[1724519479000,0.08856835,2814.7,2814.3,2.4706]
[1724519479369,4.263259,2814.8,2814.3,2.4706]
[1724519479606,0.08856516,2814.6,2814.3,2.4706]
[1724519479775,0.08856835,2814.7,2814.3,2.4706]
[1724519479985,0.08856197,2814.5,2814.3,2.4706]
[1724519480287,0.08860464,2814.4,2814.3,2.4706]
[1724519480659,0.71940384,2814.7,2814.3,2.4706]
[1724519480861,0.08860464,2814.4,2814.3,2.4706]
[1724519481102,3.55273,2814.8,2814.3,2.4706]
[1724519481692,0.08861421,2814.7,2814.3,2.4706]
[1724519482079,3.55273,2814.8,2814.3,2.4706]
[1724519482308,0.08861102,2814.6,2814.3,2.4706]
[1724519482606,0.08860783,2814.5,2814.3,2.4706]
[1724519482979,3.55273,2814.8,2814.3,2.4706]
[1724519483188,0.08860464,2814.4,2814.3,2.4706]
[1724519483362,0.355273,2814.7,2814.3,2.4706]
[1724519483568,0.08860464,2814.4,2814.3,2.4706]
[1724519483910,3.55273,2814.8,2814.3,2.4706]
[1724519483911,7.10547,2814.8,2814.3,2.4706]
[1724519484264,3.55273,2814.8,2814.3,2.4706]
[1724519484592,0.08861421,2814.7,2814.3,2.4706]
[1724519484994,7.10547,2814.8,2814.3,2.4706]
[1724519485197,0.08861102,2814.6,2814.3,2.4706]
[1724519485392,0.79916121,2814.7,2814.3,2.4706]
[1724519485565,0.08860783,2814.5,2814.3,2.4706]
[1724519485766,0.710547,2814.7,2814.3,2.4706]
[1724519486109,0.08861102,2814.6,2814.3,2.4706]
[1724519486464,3.55273,2814.8,2814.3,2.4706]
[1724519486664,7.10548,2814.8,2814.3,2.4706]
[1724519486863,3.55353,2814.1,2814.0,2.4781]
[1724519487222,3.55353,2814.1,2813.6,0.72966425]
[1724519487223,0.44396482,2814.1,2813.7,3.55394]
[1724519487379,0.44396482,2814.1,2813.8,2.4781]
[1724519487380,0.08861182,2814.1,2813.8,2.4781]
[1724519487560,3.55307,2814.5,2813.8,2.4781]
[1724519487767,0.088601,2814.4,2813.8,2.4781]
[1724519488407,3.55331,2814.3,2813.8,2.4781]
[1724519488727,4.2728081,2814.3,2813.8,2.4781]
[1724519488929,0.08859461,2814.2,2813.8,2.4781]
[1724519489257,4.2728081,2814.3,2813.8,2.4781]
[1724519489525,3.55342,2814.2,2813.8,2.4781]
[1724519489747,3.55378,2813.9,2813.8,2.4781]
[1724519489910,3.55378,2813.9,2813.2,7.88621559]
[1724519489911,4.264512,2813.9,2813.2,7.88621559]
[1724519490092,0.79926843,2813.9,2813.3,4.77793431]
[1724519490427,0.08853643,2813.9,2813.6,2.4781]
[1724519490579,0.08853643,2813.9,2813.6,6.03225]
[1724519490999,3.55333,2814.3,2813.6,6.03225]
[1724519491198,0.08852624,2813.8,2813.6,6.03225]